Cogmind - Beta 10 X1 @@@ ROGUE MODE // 2020.06.13 @ 23:32:18 Player: Decinym Result: Destroyed by D-53 Grenadier with Mini Grenade Launcher Performance ------------- Evolutions (0) 0 Regions Visited (2) 400 Robots Destroyed (4) 20 Value Destroyed (118) 118 Prototype IDs (1) 20 Alien Tech Used (0) 0 Bonus (0) 0 TOTAL SCORE: 558 Bonus ------- None Cogmind --------- Core Integrity 0/250 Matter 290/300 Energy 74/100 System Corruption 0% Temperature Cool (16) Movement Hovering (240) Ox3 Location -10/Mines Parts ------- > --- POWER (1) -------- (None) > --- PROPULSION (2) --- Hover Unit > --- UTILITY (2) ------ Large Storage Unit Thief Drone Bay (3/3) > --- WEAPON (2) ------- (None) > --- INVENTORY (10) --- Ion Engine Wheel Compact Wheel Hover Unit Large Storage Unit Advanced Signal Interpreter Maneuvering Thrusters Light Armor Plating Hacking Suite System Shield Peak State ------------ > --- POWER ------------ (None) > --- PROPULSION ------- Hover Unit > --- UTILITY ---------- Large Storage Unit Thief Drone Bay > --- WEAPON ----------- (None) > --- INVENTORY -------- Ion Engine Wheel Compact Wheel Hover Unit Large Storage Unit Advanced Signal Interpreter Maneuvering Thrusters Light Armor Plating Hacking Suite System Shield [Rating: 10] Favorites ----------- Power Light Ion Engine Engine Light Ion Engine Propulsion Hover Unit Leg Aluminum Leg Hover Unit Hover Unit Utility Large Storage Unit Device Thief Drone Bay Storage Large Storage Unit Protection Light Armor Plating Weapon Medium Laser Energy Gun Medium Laser Build | -11 -10 -10 ------- Run | Scr Mat Min Slots Evolved . | . . . Power . | . . . Propulsion . | . . . Utility . | . . . Weapon . | . . . Parts Attached 9 | . 6 3 Power 1 | . 1 . Engine 1 | . 1 . Core . | . . . Reactor . | . . . Propulsion 3 | . 1 2 Treads . | . . . Leg 1 | . 1 . Wheel . | . . . Hover 2 | . . 2 Flight . | . . . Utility 4 | . 3 1 Device 1 | . . 1 Storage 1 | . 1 . Processor . | . . . Hackware . | . . . Protection 2 | . 2 . Artifact . | . . . Weapon 1 | . 1 . Energy Gun 1 | . 1 . Energy Cannon . | . . . Ballistic Gun . | . . . Ballistic Cannon . | . . . Launcher . | . . . Special Weapon . | . . . Impact Weapon . | . . . Slashing Weapon . | . . . Piercing Weapon . | . . . Special Melee Weapon . | . . . Unidentified Prototypes 1 | . . 1 Parts Lost 8 | . 6 2 Power 2 | . 1 1 Propulsion 2 | . 1 1 Utility 1 | . 1 . Weapon 3 | . 3 . Highest Loss Streak 6 | . 6 2 Average Slot Usage (%) 76 | . 84 71 Engine 13 | . 12 14 Leg 13 | . 27 4 Hover 14 | . . 23 Storage 14 | . 14 14 Protection 12 | . 10 14 Energy Gun 7 | . 19 . Naked Turns . | . . . Heaviest Build 26 | 11 26 22 Greatest Support 20 | 20 20 20 Greatest Overweight (x) 1 | . 1 1 Average Overweight (x) . | . . 1 Largest Inventory Capacity 10 | . 10 10 Average Capacity 9 | . 9 10 Most Carried 10 | . 10 10 Average Carried 8 | . 7 9 Final Capacity 10 | 6 10 10 Final Carried 10 | 6 9 10 Class Distribution -------------------- 100% | Mutant Dominant Class ---------------- Mutant | -10/Materials Mutant | -10/Mines Resources | -11 -10 -10 ----------- Run | Scr Mat Min Matter Collected 270 | 194 46 30 Remotely . | . . . Salvage Created 167 | . 167 . Parts 11 | . 11 . Haulers Intercepted . | . . . Recyclers Shooed . | . . . Parts Field Recycled . | . . . Retrieved Matter . | . . . Parts Self-Destructed . | . . . Prevented . | . . . Kills | -11 -10 -10 ------- Run | Scr Mat Min Combat Hostiles Destroyed 3 | . 3 . Guns 3 | . 3 . Classes Destroyed 2 | . 2 . Watcher 1 | . 1 . Grunt 3 | . 3 . Best Kill Streak 3 | . 3 . Combat Bots Only 3 | . 3 . Max Kills in Single Turn 1 | . 1 . Gunslinging . | . . . Exploded . | . . . Melee . | . . . Uniques/NPCs Destroyed . | . . . Combat | -11 -10 -10 -------- Run | Scr Mat Min Damage Taken 1001 | . 733 268 Core 263 | . 157 106 Absorbed by Shields . | . . . Core Remaining (%) 100 | 100 . . Volleys Fired 20 | . 20 . Largest 2 | . 2 . Hottest 90 | . 90 . Shots Fired 36 | . 36 . Gun 36 | . 36 . Cannon . | . . . Launcher . | . . . Special . | . . . Kinetic . | . . . Thermal 20 | . 20 . Explosive . | . . . Electromagnetic 16 | . 16 . Robot Hit Streak 3 | . 3 . Robot Miss Streak 3 | . 3 . Penetration Max . | . . . Secondary Targets . | . . . Shots Hit Robots 20 | . 20 . Core Hits 9 | . 9 . Critical Hits . | . . . Critical Kills . | . . . Critical Parts Destroyed . | . . . Melee Attacks . | . . . Impact . | . . . Slashing . | . . . Piercing . | . . . Sneak Attacks . | . . . Combat Hostiles . | . . . Follow-up Attacks . | . . . Damage Inflicted 292 | . 292 . Guns 274 | . 274 . Cannons . | . . . Explosions . | . . . Melee . | . . . Ramming 18 | . 18 . Kinetic . | . . . Thermal 126 | . 126 . Explosive . | . . . Electromagnetic 148 | . 148 . Impact . | . . . Slashing . | . . . Piercing . | . . . Highest Corruption . | . . . Average Corruption . | . . . Corruption Purged . | . . . Overload Shots . | . . . Overflow Damage . | . . . Projectiles . | . . . Explosions . | . . . Melee . | . . . Knockbacks 1 | . 1 . Impact 1 | . 1 . Kinetic . | . . . Secondary . | . . . Self-Inflicted Damage 6 | . 6 . Shots . | . . . Rammed 4 | . 4 . Targets Rammed 6 | . 6 . Kicked 2 | . 2 . Crushed . | . . . Highest Temperature 345 | . 345 16 Average Temperature 182 | . 184 16 Received Heat Transfer 433 | . 393 40 Effects 2 | . 2 . Shutdowns 1 | . 1 . Short Circuit 1 | . 1 . Siege Activations . | . . . Robots Corrupted . | . . . Combat Hostiles . | . . . Parts Fried . | . . . Impact Corruptions . | . . . Robots Melted . | . . . Combat Hostiles . | . . . Parts Melted . | . . . Heat Transferred 370 | . 370 . Parts Sabotaged . | . . . Parts Stolen . | . . . Parts Stripped . | . . . Power Chain Reactions . | . . . Missiles Intercepted . | . . . Alert | -11 -10 -10 ------- Run | Scr Mat Min Peak Influence 102 | . 102 16 Average Influence 30 | . 53 15 Maximum Alert Level . | . . . Low Security (%) 100 | . 100 100 Level 1 . | . . . Level 2 . | . . . Level 3 . | . . . Level 4 . | . . . Level 5 . | . . . High Security . | . . . Max Security . | . . . Squads Dispatched 3 | . 2 1 Investigation 2 | . 1 1 Extermination . | . . . Reinforcement 1 | . 1 . Assault . | . . . Garrison . | . . . Intercept . | . . . Construction Impeded . | . . . Haulers Reinforced . | . . . Stealth | -11 -10 -10 --------- Run | Scr Mat Min Distress Signals 1 | . 1 . Communications Jammed . | . . . Distress Signals . | . . . Times Spotted 23 | . 8 15 Peak Tracking Total 7 | . 3 7 Tactical Retreats 2 | . 1 1 Traps | -11 -10 -10 ------- Run | Scr Mat Min Traps Triggered 1 | . 1 . Indirectly . | . . . Trap Hack Attempts . | . . . Triggered . | . . . Disarmed . | . . . Reprogrammed . | . . . Reused . | . . . Traps Extracted . | . . . Installed . | . . . Triggered . | . . . Machines | -11 -10 -10 ---------- Run | Scr Mat Min Machines Disabled . | . . . Max in Single Turn . | . . . Machines Sabotaged . | . . . Garrisons Compromised . | . . . Overloaded Fab Kills . | . . . Fab Network Shutdowns . | . . . Hacking | -11 -10 -10 --------- Run | Scr Mat Min Machines Accessed 2 | . . 2 Terminals . | . . . Fabricators . | . . . Repair Stations . | . . . Recycling Units . | . . . Scanalyzers . | . . . Garrison Access . | . . . Total Hacks 2 | . . 2 Successful 2 | . . 2 Failed . | . . . Catastrophic . | . . . Database Lockouts . | . . . Manual . | . . . Terminals . | . . . Fabricators . | . . . Repair Stations . | . . . Recycling Units . | . . . Scanalyzers . | . . . Garrison Access . | . . . Terminal Hacks 2 | . . 2 Open Door 2 | . . 2 Fabricator Hacks . | . . . Repair Station Hacks . | . . . Recycling Unit Hacks . | . . . Scanalyzer . | . . . Garrison Access Hacks . | . . . Unauthorized Hacks . | . . . Terminals . | . . . Fabricators . | . . . Repair Stations . | . . . Recycling Units . | . . . Scanalyzers . | . . . Garrison Access . | . . . Data Cores Recovered . | . . . Used . | . . . Hacking Detections . | . . . Full Trace Events . | . . . Feedback Events . | . . . Feedback Blocked . | . . . Robot Schematics Acquired . | . . . Robots Built . | . . . Matter . | . . . Time . | . . . Total Robot Build Rating . | . . . Part Schematics Acquired . | . . . Parts Built . | . . . Matter . | . . . Time . | . . . Total Part Build Rating . | . . . Parts Repaired . | . . . Time . | . . . Parts Recycled . | . . . Recycled Matter . | . . . Retrieved Matter . | . . . Retrieved Components . | . . . Parts Scanalyzed . | . . . Part Schematics Acquired . | . . . Parts Damaged . | . . . Bothacking | -11 -10 -10 ------------ Run | Scr Mat Min Used RIF Installer . | . . . Robots Hacked . | . . . Non-combat . | . . . Combat . | . . . Robot Hacks Applied . | . . . Relay Couplers Released . | . . . Robots Rewired . | . . . Allies Hacked . | . . . Hacks Repelled . | . . . Allies | -11 -10 -10 -------- Run | Scr Mat Min Total Allies . | . . . Largest Group . | . . . Highest-Rated Group . | . . . Highest-Rated Ally . | . . . Total Orders . | . . . Ally Attacks . | . . . Total Damage . | . . . Kills . | . . . Allies Corrupted . | . . . Allies Melted . | . . . Intel | -11 -10 -10 ------- Run | Scr Mat Min Robot Analysis Total . | . . . Derelict Logs Recovered 3 | . . 3 Drone Launches . | . . . Drone Recoveries . | . . . Exploration | -11 -10 -10 ------------- Run | Scr Mat Min Turns Passed 486 | . 187 299 Spaces Moved 308 | 1 79 228 Core . | . . . Treads . | . . . Legs 110 | 1 79 30 Wheels . | . . . Hover 198 | . . 198 Flight . | . . . Fastest Speed 116 | 120 120 116 Average Speed 125 | 120 138 120 Slowest Speed 150 | 120 150 150 Overloaded Moves . | . . . Propulsion Burnouts . | . . . Robots Hopped . | . . . Cave-ins Triggered . | . . . Exploration Rate (%) 24 | 1 16 56 Regions Visited 2 Branch Regions 1 Pre-discovered Areas . | . . . Known Exits Taken . | . . . Unknown Exits Taken 2 | 1 1 . Scrap Searched 1 | . . 1 Spaces Dug . | . . . Terrain Destroyed . | . . . Melee . | . . . Projectile . | . . . AOE . | . . . Actions | -11 -10 -10 --------- Run | Scr Mat Min Total 373 | . 119 254 Wait 14 | . . 14 Move 306 | . 78 228 Hop . | . . . Pick Up 12 | . 7 5 Fast Attach 2 | . 2 . Attach 5 | . 3 2 Detach . | . . . Swap 2 | . 1 1 Drop 6 | . 2 4 Fire 20 | . 20 . Melee . | . . . Ram . | . . . Kick 6 | . 6 . Crush . | . . . Escape Stasis . | . . . Rewire . | . . . Trap . | . . . Miscellaneous . | . . . Route ------- -11/Scrapyard -10/Materials -10/Mines History --------- Turn | Location | Event 1 | -11/Scrapyard | Discovered new exit (range 0) 1 | -11/Scrapyard | Entered Materials 15 | -10/Materials | Discovered new exit (range 16) 158 | -10/Materials | Core integrity fell below 50% 180 | -10/Materials | Lost 6 parts (1p1n1u3w) 188 | -10/Materials | Entered Mines 190 | -10/Mines | Met a Derelict bent on vengeance 225 | -10/Mines | Met a Derelict shopkeep closing up shop 302 | -10/Mines | Build established: Mutant 372 | -10/Mines | Learned Materials non-interactive machine intel 381 | -10/Mines | Learned location of 1 exit from Materials 416 | -10/Mines | Assembled infested the area 421 | -10/Mines | Assisted by a Guerilla fighting off Assembled 465 | -10/Mines | Core integrity fell below 20% 479 | -10/Mines | Found the Drone Emporium 485 | -10/Mines | Found Prototype Device 486 | -10/Mines | Identified Thief Drone Bay 487 | -10/Mines | Destroyed by D-53 Grenadier with Mini Grenade Launcher Last Messages --------------- 00478_ Connecting with SHOP.Sys... >>Open Door Sealed Doors opened. 00479_ CD-PGN(g): "Well that was anticlimactic. Heard you outside and thought you were from the Merchants Guild. I haven't even officially opened my Drone Emporium yet but am totally ready to tell them where they can shove that C&D." 00481_ CD-PGN(g): "I'm a fan of the free market. Free drones for all! No strings attached!" 00482_ Searching scrap... 00482_ Found 44 Matter. 00482_ Found Grenade Launcher. 00482_ Found 24 Matter. 00482_ Found Hammer. 00483_ Lgt. Ion Engine destroyed. 00483_ Machine disabled. 00485_ Dropped Aluminum Leg. 00485_ Acquired Prototype Device. 00486_ Hover Unit destroyed. 00486_ Identified Thief Drone Bay. Map ----- +----------------------------------------------------+ | ???## =#####??????????????????????????? | | ???### ### ##?????????????????????????? | | ???# X ##????????????????????????? | | ???# ##???????????????????????? | | ???# ###?????????????????????? | | ???# #### ##????????????????????? | | ???## ##??## #????????????????????? | | ????## ##????# #????????????????????? | | ?????## #?????## ##????????????????????? | | ###???# #??????####?????????????????????? | | ##??# #???????????????????????????????? | | #### #???????????????????????????????? | | #???????????????????????????????? | | ##### #???????????????????????????????? | | ##???# #???????????????????????????????? | | ##????# #?????????????????###???????????? | | #????? #????????????????? ???????????? | | #????? #????????????????? ??#????????? | | #????? #????????????????? """ #????????? | | ?????? #????????????????? """ #????????? | | ?????? ????????????????? """a###??????? | | ?????? ##?????????????#### """ aa???????? | | #???? ??????????????## aa ?????????? | | ????? ??????????????# #??????????? | | ????? ?????????????## ##?????????? | | ????? ?????????????# %@= #?????????? | | ????? ?????????????# ] ##?????????? | | ????? ?????????????# g #??????????? | | ????????????????????## ##?????????? | | ????????????????????# X #### #???? | | ######??????????????# #???? | | #??????????????# % #???? | | !! #??????????????## = #####* #??? | | ! ! #???????????????## !%##?????= #?? | | ! ! #???????????###??#d *#??????? ??? | | ! ! #????????#### ### #???????? ???? | | #????????# # ##????????????? | | #????????# ###?????????????? | | ######???????## ##???????????????? | | ?????????????# #????????????????? | | ????????????? #????????????????? | | ???????????? ##????????????????? | | ??????????? ##?????????????????? | | ??????????# % ####??????????????????? | | ????####??? = ##?????????????????????? | | ???## #### =% ???????????????????????? | | ???# ## ?????????????????????????? | | #### # #?????????????????????????? | | ## ###???????????????????????? | | ##??????????????????????? | +----------------------------------------------------+ Best States ------------- Heat Dissipation 25 Energy Generation 10 Energy Capacity 125 Matter Stores 300 Matter Capacity 300 Sight Range 16 Terrain Scan Density 10 Armor Coverage 150 Evasion (%) 40 Item Schematics ----------------- None Robot Schematics ------------------ None Fabricated ------------ Nothing Alien Tech Used ----------------- None Achievements -------------- None Challenges ------------ None Game ------ Seed LegEnergyKatana Manual? 0 Play Time 00:06:32 Cumulative 311.1 hours Start 2020.06.13 @ 23:28:12 End 2020.06.13 @ 23:32:18 Sessions 1 Manual Loads 0 Difficulty Rogue Special Mode None Game No. 339 Rogue 339 Adventurer 0 Explorer 0 Win Type - Total 29 Types 17/3/2/1/2/1/3 Lore% 93 Gallery% 87 Achievement% 78 Wizard Run 0 Options --------- ASCII 0 Keyboard 0 Movement Arrows Keybinds 0 Fullscreen 2 Font 18/SmallcapsGlow Map View 76x50 Tactical HUD 1 Map Filters NONE Filters NONE Steam 1 RUN: 5fba3b28-bc0f-45dd-bd0d-1c6525dba593